bitfinex-derivatives/quotes_ETHF0:USTF0_20250428
["timestamp","ask_amount","ask_price","bid_price","bid_amount"]
[1745879772934,2.96068,1794.9,1794.8,1.114]
[1745879773135,1.8467,1794.9,1794.8,1.114]
[1745879773440,1.8467,1794.9,1794.8,4.3218]
[1745879773636,1.8467,1794.9,1794.8,6.2099]
[1745879774737,2.96068,1794.9,1794.8,6.2099]
[1745879774934,2.96068,1794.9,1794.8,3.2078]
[1745879775134,4.82938,1794.9,1794.8,3.2078]
[1745879775735,1.11411,1794.7,1794.6,3.2078]
[1745879776331,2.88251,1794.7,1794.6,3.2078]
[1745879777048,2.88251,1794.7,1794.5,2.97261]
[1745879777243,3.6618,1794.6,1794.5,2.97261]
[1745879777433,1.7735,1794.6,1794.5,2.97261]
[1745879777738,1.7684,1794.7,1794.6,1.11417]
[1745879777933,1.7684,1794.7,1794.6,2.87247]
[1745879780641,1.7684,1794.7,1794.6,6.08027]
[1745879780938,1.7735,1794.8,1794.7,1.11411]
[1745879781240,1.7735,1794.8,1794.7,3.00141]
[1745879784844,1.7466,1794.9,1794.8,1.11405]
[1745879785034,1.8229,1795.0,1794.9,1.11398]
[1745879785436,1.8229,1795.0,1794.9,2.84328]
[1745879789245,2.93682,1795.0,1794.9,1.11398]
[1745879791245,1.8229,1795.0,1794.9,1.11398]
[1745879791446,2.93682,1795.0,1794.9,1.11398]
[1745879794650,1.8229,1795.0,1794.9,1.11398]
[1745879794952,2.93682,1795.0,1794.9,1.11398]
[1745879795350,1.8229,1795.0,1794.9,1.11398]
[1745879795653,2.93682,1795.0,1794.9,1.11398]
[1745879796151,1.8229,1795.0,1794.9,1.11398]
[1745879796946,1.8229,1795.0,1794.6,3.2078]
[1745879797149,1.11413,1794.7,1794.6,3.2078]
[1745879798053,2.84723,1794.7,1794.6,4.32197]
[1745879799154,1.7331,1794.7,1794.6,4.32197]
[1745879799853,1.7331,1794.7,1794.6,6.23057]
[1745879800358,2.98785,1795.0,1794.9,1.11398]
[1745879800655,3.766,1795.2,1794.8,6.9596]
[1745879800849,4.84191,1795.2,1795.1,1.11386]
[1745879801156,1.11389,1795.1,1795.0,1.11386]
[1745879801858,1.11392,1795.0,1794.9,1.11393]
[1745879802054,1.1139,1795.1,1795.0,1.11392]
[1745879802459,1.11386,1795.1,1795.0,1.11392]
[1745879802958,1.8542,1795.2,1794.9,1.7721]
[1745879803156,1.11392,1795.0,1794.9,1.11394]
[1745879803348,3.2078,1795.1,1794.6,4.9799]
[1745879803553,3.5038,1794.9,1794.6,6.6863]
[1745879804059,3.5038,1794.9,1794.6,3.4785]
[1745879804447,3.5038,1794.9,1794.7,1.11408]
[1745879804656,1.11405,1794.8,1794.7,1.11408]
[1745879806063,1.11408,1794.8,1794.7,1.11411]
[1745879806458,8.2078,1794.8,1794.2,3.2078]
[1745879806652,2.7853,1794.7,1794.2,7.80888]
[1745879806962,1.11434,1794.4,1794.2,48.60888]
[1745879807169,4.61446,1794.3,1794.2,48.60888]
[1745879807670,3.5001,1794.3,1794.2,48.60888]
[1745879807971,4.61446,1794.3,1794.2,48.60888]
[1745879808168,3.5001,1794.3,1794.2,48.60888]
[1745879808664,4.61446,1794.3,1794.2,48.60888]
[1745879809371,3.5001,1794.3,1794.2,48.60888]
[1745879811671,4.61446,1794.3,1794.2,48.60888]
[1745879813964,4.61446,1794.3,1794.2,4.32218]
[1745879814762,4.61446,1794.3,1794.2,6.10088]
[1745879815169,1.11448,1794.1,1794.0,6.9738]
[1745879815365,1.11448,1794.1,1794.0,3.2078]
[1745879815561,1.11448,1794.1,1794.0,4.32234]
[1745879815765,1.11448,1794.1,1794.0,6.10104]
[1745879821479,1.7353,1794.3,1794.0,4.9865]
[1745879821775,2.84966,1794.3,1794.2,1.11442]
[1745879822778,1.11442,1794.2,1794.1,4.72153]
[1745879822978,2.91782,1794.2,1794.1,4.72153]
[1745879823474,1.8034,1794.2,1794.1,4.72153]
[1745879823669,1.7353,1794.3,1794.2,1.11442]
[1745879823870,1.7353,1794.3,1794.2,2.81682]
[1745879824379,2.84966,1794.3,1794.2,2.81682]
[1745879824678,1.7353,1794.3,1794.2,2.81682]
[1745879825177,2.84966,1794.3,1794.2,2.81682]
[1745879825380,4.65306,1794.3,1794.2,2.81682]
[1745879826179,3.5387,1794.3,1794.2,2.81682]
[1745879828072,1.7353,1794.3,1794.2,6.02462]
[1745879828472,6.68986,1794.5,1794.4,1.1143]
[1745879828667,8.53426,1794.5,1794.4,1.1143]
[1745879828981,1.8444,1794.5,1794.4,1.1143]
[1745879829177,3.767,1794.8,1794.7,1.11411]
[1745879829383,3.5363,1794.8,1794.7,1.11411]
[1745879829678,1.11399,1794.9,1794.8,1.11401]
[1745879829879,4.65029,1794.9,1794.8,1.11401]
[1745879831482,4.65029,1794.9,1794.7,4.59926]
[1745879831684,1.6919,1794.8,1794.7,4.59926]
[1745879831882,1.11411,1794.7,1794.6,4.32195]
[1745879832178,1.7429,1794.7,1794.6,4.32195]
[1745879832380,2.85701,1794.7,1794.6,4.32195]
[1745879832581,3.5555,1794.7,1794.6,6.07855]
[1745879833482,3.5555,1794.7,1794.6,2.87075]
[1745879835080,3.5555,1794.7,1794.5,1.7567]
[1745879835081,1.1142,1794.6,1794.5,1.11421]
[1745879835282,2.92671,1794.7,1794.6,1.7947]
[1745879835482,1.11411,1794.7,1794.6,2.90887]
[1745879835885,1.11411,1794.7,1794.6,1.11417]
[1745879839382,1.7177,1794.9,1794.5,6.8508]
[1745879839583,3.2078,1795.0,1794.9,1.11398]
[1745879839777,4.8809,1795.1,1794.7,5.99304]
[1745879839972,1.11387,1795.1,1794.9,3.2078]
[1745879840174,2.87063,1795.2,1795.1,1.11386]
[1745879840378,4.87772,1795.4,1795.2,1.11376]
[1745879840680,1.21113758,1795.5,1795.3,41.91374]
[1745879840880,1.21113758,1795.5,1795.4,1.6534]
[1745879841077,1.21113758,1795.5,1795.4,2.76707]
[1745879841477,1.21113758,1795.5,1795.4,4.41987]
[1745879842186,0.09748758,1795.5,1795.4,45.21987]
[1745879844085,0.09748758,1795.5,1795.4,49.02187]
[1745879846088,0.09748758,1795.5,1795.4,45.21987]
[1745879847090,0.09748758,1795.5,1795.4,49.02187]
[1745879848990,1.85588758,1795.5,1795.4,49.02187]
[1745879852497,0.09748758,1795.5,1795.4,49.02187]
[1745879853798,1.81658758,1795.5,1795.4,49.02187]
[1745879860205,0.09748758,1795.5,1795.4,45.21987]
[1745879860898,3.2078,1796.1,1795.7,2.78373]
[1745879861095,3.5222,1796.0,1795.9,1.11336]
[1745879861302,1.7774,1796.0,1795.9,2.82566]
[1745879862805,3.4823,1796.0,1795.9,2.82566]
[1745879863104,4.5956,1796.0,1795.9,2.82566]
[1745879863704,3.4823,1796.0,1795.9,2.82566]
[1745879865106,3.4823,1796.0,1795.9,1.11336]
[1745879866902,3.4823,1796.0,1795.9,2.89246]
[1745879867305,3.4823,1796.0,1795.9,6.10026]
[1745879868011,2.7786,1796.2,1796.1,1.11324]
[1745879868012,1.6654,1796.2,1796.1,1.11324]
[1745879868316,5.1045,1796.2,1796.1,1.11324]
[1745879869313,5.1045,1796.2,1796.1,2.87504]
[1745879870010,6.21768,1796.2,1796.1,2.87504]
[1745879870406,1.11311,1796.4,1796.3,1.11311]
[1745879870602,4.53461,1796.4,1796.3,1.11311]
[1745879871603,1.11313,1796.3,1796.2,1.11313]
[1745879871803,2.76683,1796.3,1796.2,1.11313]
[1745879872012,1.11318,1796.2,1796.1,7.76248]
[1745879872210,4.57358,1796.2,1796.1,7.76254]
[1745879874008,1.6537,1796.2,1796.1,7.76254]
[1745879874412,3.3868,1796.4,1796.3,1.11312]
[1745879874613,1.6579,1796.5,1796.4,1.11305]
[1745879874808,2.92108,1796.7,1796.6,1.11293]
[1745879875010,1.8082,1796.7,1796.6,1.11293]
[1745879875211,5.6102,1796.7,1796.6,1.11293]
[1745879875512,7.2681,1796.7,1796.6,1.11293]
[1745879875711,7.2681,1796.7,1796.6,41.91293]
[1745879876311,8.38097,1796.7,1796.6,41.91293]
[1745879876716,8.38097,1796.7,1796.6,40.8]
[1745879877010,8.38097,1796.7,1796.6,41.91293]
[1745879877313,1.11305,1796.4,1796.3,3.2078]
[1745879877511,1.11305,1796.4,1796.3,4.32092]
[1745879877706,1.11305,1796.4,1796.3,44.0078]
[1745879878013,1.11305,1796.4,1796.3,3.2078]
[1745879878415,2.85715,1796.4,1796.3,3.2078]
[1745879880115,1.11312,1796.3,1796.2,40.8]
[1745879880417,4.52512,1796.3,1796.2,40.8]
[1745879880825,1.11318,1796.2,1796.1,1.11319]
[1745879881022,4.48978,1796.2,1796.1,1.11319]
[1745879881411,4.48978,1796.2,1796.1,41.91319]
[1745879881610,4.48978,1796.2,1795.9,1.7993]
[1745879881611,6.15958,1796.2,1795.9,3.2078]
[1745879881816,1.1133,1796.0,1795.9,3.2078]
[1745879883126,4.9153,1796.0,1795.9,3.2078]
[1745879883624,1.11343,1795.8,1795.7,3.2078]
[1745879884313,1.7769,1795.8,1795.7,4.32129]
[1745879885328,2.89033,1795.8,1795.7,4.32129]
[1745879886227,1.7769,1795.8,1795.7,4.32129]
[1745879886927,2.89033,1795.8,1795.7,4.32129]
[1745879887429,1.7769,1795.8,1795.7,4.32129]
[1745879887627,2.89033,1795.8,1795.7,4.32129]
[1745879888323,1.7769,1795.8,1795.7,4.32129]
[1745879888523,2.89033,1795.8,1795.7,4.32129]
[1745879889728,2.89033,1795.8,1795.7,3.2078]
[1745879890230,1.11349,1795.7,1795.6,1.11355]
[1745879890429,2.81929,1795.7,1795.6,1.11355]
[1745879890928,2.81929,1795.7,1795.6,4.32135]
[1745879891329,2.81929,1795.7,1795.6,3.2078]
[1745879891529,2.81929,1795.7,1795.6,4.32135]
[1745879892027,2.81929,1795.7,1795.6,3.2078]
[1745879892233,2.81929,1795.7,1795.6,4.32135]
[1745879892626,2.81929,1795.7,1795.6,1.11355]
[1745879892932,2.81929,1795.7,1795.6,4.32135]
[1745879893234,2.81929,1795.7,1795.6,3.2078]
[1745879894334,1.11374,1795.3,1795.2,2.86969]
[1745879894633,1.1138,1795.2,1795.1,6.09993]
[1745879894934,1.1138,1795.2,1795.1,46.89993]
[1745879896233,1.11378,1795.3,1795.2,1.11379]
[1745879896435,1.6393,1795.4,1795.3,1.11374]
[1745879897130,1.6393,1795.4,1795.3,4.91574]
[1745879897837,4.9098,1795.5,1795.4,1.11367]
[1745879898039,4.9098,1795.5,1795.4,4.52527]
[1745879898536,7.81941,1795.5,1795.4,4.52527]
[1745879898737,7.81941,1795.5,1795.4,1.6827]
[1745879899838,7.81941,1795.5,1795.4,2.79637]
[1745879900942,7.81941,1795.5,1795.4,1.6827]
[1745879901142,1.11367,1795.4,1795.3,2.87619]
[1745879901346,2.78697,1795.4,1795.3,1.11369]
[1745879902348,1.6733,1795.4,1795.3,1.11369]
[1745879902549,3.2078,1795.5,1795.4,1.11367]
[1745879903151,3.2078,1795.5,1795.4,4.91567]
[1745879903852,1.7622,1795.7,1795.6,1.11355]
[1745879904444,1.7622,1795.7,1795.6,2.73805]
[1745879904652,0.00368001,1795.8,1795.7,1.11349]
[1745879904951,0.00368001,1795.8,1795.7,2.73799]
[1745879905149,0.00368001,1795.8,1795.7,6.53999]
[1745879907149,3.2078,1796.1,1796.0,1.1133]
[1745879907551,4.37693,1796.2,1796.1,1.11324]
[1745879907949,1.11324,1796.1,1796.0,1.11326]
[1745879908253,2.87694,1796.1,1796.0,1.11326]
[1745879910056,1.1133,1796.0,1795.9,2.82432]
[1745879910247,2.877,1796.0,1795.9,2.82432]
[1745879912053,1.7637,1796.0,1795.9,2.82432]
[1745879912850,1.11324,1796.1,1796.0,1.1133]
[1745879913057,1.6376,1796.2,1796.1,1.11324]
[1745879913258,1.6376,1796.2,1796.1,2.66014]
[1745879913756,3.4063,1796.2,1796.1,2.66014]
[1745879913945,1.11324,1796.1,1796.0,1.11326]
[1745879914144,2.88194,1796.1,1796.0,1.11326]
[1745879914659,1.1133,1796.0,1795.9,1.11334]
[1745879914957,4.3527,1796.0,1795.9,1.11334]
[1745879916859,4.3527,1796.0,1795.8,4.8694]
[1745879916860,1.11336,1795.9,1795.8,4.8694]
[1745879917050,1.11345,1795.8,1795.7,1.11345]
[1745879917351,2.87215,1795.8,1795.7,1.11345]
[1745879917958,1.7587,1795.8,1795.7,1.11345]
[1745879918361,3.5445,1795.8,1795.7,1.11345]
[1745879923360,1.5715,1796.0,1795.9,1.11336]
[1745879923562,3.4337,1796.1,1796.0,1.1133]
[1745879924054,1.7407,1796.1,1796.0,1.1133]
[1745879924253,3.2078,1796.2,1796.1,1.11324]
[1745879924450,3.2078,1796.2,1796.1,2.89684]
[1745879929259,4.9609,1796.2,1796.1,2.89684]
[1745879930559,1.11327,1796.1,1796.0,1.11327]
[1745879930862,4.9609,1796.2,1796.1,1.11324]
[1745879933262,1.11324,1796.1,1796.0,1.11324]
[1745879933453,5.56534,1796.1,1796.0,1.11324]
[1745879940966,4.4521,1796.1,1796.0,1.1133]
[1745879941162,1.3576,1796.1,1796.0,1.1133]
[1745879941659,1.3576,1796.1,1796.0,2.7798]
[1745879942062,1.3576,1796.1,1796.0,6.5818]
[1745879943270,2.9684,1796.1,1796.0,6.5818]
[1745879951781,4.08164,1796.1,1796.0,4.9153]
[1745879952074,10.49834,1796.1,1796.0,0.55335668]
[1745879952277,1.11345,1795.8,1795.7,1.11346]
[1745879953772,2.47405,1795.8,1795.7,1.11346]
[1745879954382,1.6634,1795.9,1795.8,1.11343]
[1745879955179,1.3606,1796.1,1796.0,1.1133]
[1745879955378,3.0837,1796.1,1796.0,1.1133]
[1745879958175,3.0837,1796.1,1796.0,2.8339]
[1745879958481,4.19694,1796.1,1796.0,1.1133]
[1745879958979,3.0837,1796.1,1796.0,1.1133]
[1745879959387,4.19694,1796.1,1796.0,1.1133]
[1745879961983,1.11336,1795.9,1795.8,2.54518]
[1745879962184,2.72544,1796.0,1795.9,1.11336]
[1745879965190,2.72544,1796.0,1795.8,1.1134]
[1745879965191,1.1134,1795.9,1795.8,1.1134]
[1745879965487,1.11343,1795.8,1795.7,3.2078]
[1745879965682,2.48733,1795.8,1795.7,3.2078]
[1745879966291,2.48733,1795.8,1795.7,4.32129]
[1745879971995,2.48733,1795.8,1795.7,1.11349]
[1745879975086,5.69513,1795.8,1795.7,1.11349]
[1745879975494,2.48733,1795.8,1795.7,1.11349]
[1745879978189,3.87163,1795.8,1795.7,1.11349]
[1745879981997,1.11349,1795.7,1795.6,4.86352]
[1745879982297,2.85259,1795.7,1795.6,4.86352]
[1745879984697,1.7391,1795.7,1795.6,4.86352]
[1745879986104,2.85259,1795.7,1795.6,1.11352]
[1745879987603,2.78413,1795.5,1795.0,7.37617371]
[1745879987793,1.11386,1795.1,1795.0,8.78007371]
[1745879988105,1.11386,1795.1,1795.0,7.37617371]
[1745879988404,4.32166,1795.1,1795.0,7.37617371]
[1745879988801,3.2078,1795.1,1795.0,7.37617371]
[1745879988997,4.32166,1795.1,1795.0,11.46939371]
[1745879989199,7.34716,1795.1,1795.0,15.27139371]
[1745879990205,7.34716,1795.1,1795.0,11.46939371]
[1745879990708,7.34716,1795.1,1795.0,4.09322]
[1745879992197,6.2333,1795.1,1795.0,4.09322]
[1745879992399,6.31799,1795.3,1795.1,1.11386]
[1745879992700,1.1138,1795.2,1795.1,2.72206]
[1745879993303,7.99267,1795.3,1795.1,2.72206]
[1745879993504,6.8789,1795.3,1795.1,2.72206]
[1745879993693,1.1138,1795.2,1795.1,2.72206]
[1745879993894,2.742,1795.2,1795.1,2.72206]
[1745879994608,1.6282,1795.2,1795.1,2.72206]
[1745879996804,1.4107,1795.4,1795.3,1.11374]
[1745879997406,2.52437,1795.4,1795.3,2.57834]
[1745879997595,4.11927,1795.4,1795.3,2.57834]
[1745879997904,4.11927,1795.4,1795.2,2.71848]
[1745879998213,4.06064,1795.3,1795.2,2.71848]
[1745879999105,4.06064,1795.3,1795.2,6.52048]
[1745880001107,4.06064,1795.3,1795.2,2.71848]
[1745880002206,4.06064,1795.3,1795.2,6.52048]
[1745880003106,4.06064,1795.3,1795.2,2.71848]
[1745880004100,4.06064,1795.3,1795.2,6.52048]
[1745880005101,4.06064,1795.3,1795.2,2.71848]
[1745880009009,2.9469,1795.3,1795.2,2.71848]
[1745880009212,1.5949,1795.3,1795.2,2.71848]
[1745880010410,2.70864,1795.3,1795.2,2.71848]
[1745880011715,1.11384,1795.2,1795.1,1.11383]
[1745880011915,2.80714,1795.2,1795.1,1.11383]
[1745880012706,3.97202,1795.4,1795.3,1.11374]
[1745880012906,5.66532,1795.4,1795.3,1.11374]
[1745880013313,5.66532,1795.4,1795.3,2.46984]
[1745880013505,5.66532,1795.4,1795.3,1.3561]
[1745880013702,1.11374,1795.3,1795.2,1.11376]
[1745880013905,2.80704,1795.3,1795.2,1.11376]
[1745880014914,2.80704,1795.3,1795.0,6.1846]
[1745880014915,1.11383,1795.2,1795.1,1.11382]
[1745880015102,2.83843,1795.2,1795.1,1.11382]
[1745880022718,1.7246,1795.2,1795.1,1.11382]
[1745880022916,2.8583,1795.4,1795.3,1.11374]
[1745880023121,3.0783,1795.4,1795.3,1.11374]
[1745880023616,3.0783,1795.4,1795.3,2.53264]
[1745880023809,3.0783,1795.4,1795.3,4.24104]
[1745880024008,4.19197,1795.4,1795.3,4.24104]
[1745880024207,4.19197,1795.4,1795.3,2.53264]
[1745880024719,3.0783,1795.4,1795.3,1.11374]
[1745880028122,4.19197,1795.4,1795.3,1.11374]
[1745880028319,3.0783,1795.4,1795.1,1.4189]
[1745880028519,4.13515,1795.3,1795.2,1.11377]
[1745880029322,3.0214,1795.3,1795.2,1.11377]
[1745880029825,4.13514,1795.3,1795.2,1.11377]
[1745880031119,3.0214,1795.3,1795.2,1.11377]
[1745880033224,3.0214,1795.3,1795.2,2.78687]
[1745880035527,1.6178,1795.3,1795.2,2.78687]
[1745880036024,1.6178,1795.3,1795.2,4.25607]
[1745880036228,1.6178,1795.3,1795.2,8.05807]
[1745880036426,1.4107,1795.4,1795.3,1.11374]
[1745880036620,1.4107,1795.4,1795.3,2.69464]
[1745880037018,3.1327,1795.4,1795.3,2.69464]
[1745880037215,3.2078,1795.8,1795.4,2.78419]
[1745880037525,4.5434,1795.9,1795.8,1.11343]
[1745880037723,4.32108,1796.1,1796.0,1.1133]
[1745880037921,7.37528,1796.1,1796.0,1.1133]
[1745880038122,3.0542,1796.1,1796.0,1.1133]
[1745880038926,4.16744,1796.1,1795.9,1.11332]
[1745880039126,3.1542,1796.0,1795.9,1.11332]
[1745880039314,3.1542,1796.0,1795.9,1.85184538]
[1745880039516,3.1542,1796.0,1795.9,42.65184538]
[1745880040426,3.1542,1796.0,1795.9,42.65134233]
[1745880040726,3.1542,1796.0,1795.9,41.91332]
[1745880041928,4.2675,1796.0,1795.9,41.91332]
[1745880042728,3.1542,1796.0,1795.9,41.91332]
[1745880045429,1.722,1796.0,1795.9,41.91332]
[1745880048929,1.3322,1796.1,1796.0,1.1133]
[1745880049130,3.0414,1796.1,1796.0,4.1936]
[1745880050131,3.802,1802.6,1796.0,4.1936]
[1745880050132,3.2078,1796.7,1796.6,1.11293]
[1745880050426,6.0725,1796.7,1796.6,1.11293]
[1745880051220,1.11305,1796.4,1796.3,3.742]
[1745880051422,1.11305,1796.4,1796.3,40.8]
[1745880051624,1.11324,1796.1,1796.0,1.1133]
[1745880052024,1.11324,1796.1,1796.0,41.9133]
[1745880055337,2.78583,1796.2,1796.1,1.11324]
[1745880063343,1.6726,1796.2,1796.1,1.11324]
[1745880063534,1.6726,1796.2,1796.1,2.80184]
[1745880064035,2.78578,1796.2,1796.1,2.80184]
[1745880065443,2.78578,1796.2,1796.1,3.53959709]
[1745880066443,2.78578,1796.2,1796.1,3.54032217]
[1745880066738,2.78578,1796.2,1796.1,0.73848217]
[1745880067044,2.78578,1796.2,1796.1,1.85172217]
[1745880068038,1.6726,1796.2,1796.1,1.85172217]
[1745880068440,1.6726,1796.2,1796.1,3.47222217]
[1745880068743,4.6458,1796.3,1796.2,1.11318]
[1745880068945,4.6458,1796.3,1796.2,4.83086217]
[1745880070350,4.6458,1796.3,1796.2,4.8309144]
[1745880070540,5.75892,1796.3,1796.2,4.8309144]
[1745880070740,7.46782,1796.3,1796.2,4.8309144]
[1745880072147,7.46782,1796.3,1796.2,4.8309112]
[1745880073446,7.46782,1796.3,1796.2,1.8517112]
[1745880073640,7.46782,1796.3,1796.2,0.7385312]
[1745880073840,1.1132,1796.2,1796.1,1.1132]
[1745880074040,2.8233,1796.2,1796.1,1.85172749]
[1745880074743,1.7101,1796.2,1796.1,1.85172749]
[1745880074946,5.75895,1796.3,1796.2,1.11318]
[1745880075247,5.75895,1796.3,1796.2,1.85170749]
[1745880075442,5.75895,1796.3,1796.2,3.53000749]
[1745880075749,7.46905,1796.3,1796.2,3.53000749]
[1745880079148,7.46905,1796.3,1796.2,3.53013696]
[1745880080651,7.46905,1796.3,1796.2,1.85183696]
[1745880080846,7.46905,1796.3,1796.2,0.73865696]
[1745880081546,7.46905,1796.3,1796.2,1.85183696]
[1745880082150,3.2078,1796.3,1796.2,1.85183696]
[1745880082353,3.2078,1796.5,1796.4,1.11302]
[1745880082543,3.2078,1796.5,1796.4,1.85167696]
[1745880082742,4.32079,1796.5,1796.4,0.73865696]
[1745880082944,5.93859,1796.5,1796.4,0.73865696]
[1745880083250,5.93859,1796.5,1796.2,1.11315]
[1745880083251,1.11312,1796.3,1796.2,1.11315]
[1745880083554,1.11312,1796.3,1796.2,1.85196693]
[1745880084350,2.73092,1796.3,1796.2,1.85196693]
[1745880085451,2.73092,1796.3,1796.2,1.85194652]
[1745880087354,2.73092,1796.3,1796.2,1.85198067]
[1745880090352,4.6173,1796.4,1796.3,1.11312]
[1745880090558,1.4095,1796.4,1796.3,1.85195067]
[1745880090855,3.0985,1796.5,1796.4,1.11305]
[1745880091055,4.5664,1796.5,1796.4,3.33248067]
[1745880091255,4.5664,1796.5,1796.4,3.33248554]
[1745880091458,4.5664,1796.5,1796.4,2.59365]
[1745880092459,3.1859,1796.5,1796.4,3.33257025]
[1745880092656,3.2078,1796.6,1796.5,1.11299]
[1745880092849,3.2078,1796.6,1796.5,3.48311025]
[1745880093049,4.8787,1796.6,1796.5,3.48291632]
[1745880093250,8.6807,1796.6,1796.5,3.48291632]
[1745880095159,4.8787,1796.6,1796.5,3.48291632]
[1745880095658,5.99163,1796.6,1796.5,3.48291632]
[1745880096158,9.79363,1796.6,1796.5,3.48291632]
[1745880096858,9.79363,1796.6,1796.5,3.4822735]
[1745880097158,8.6807,1796.6,1796.5,3.4822735]
[1745880097754,9.79363,1796.6,1796.5,3.4822735]
[1745880097961,8.6807,1796.6,1796.5,3.4822735]
[1745880100060,9.79363,1796.6,1796.5,3.4822735]
[1745880100658,9.79363,1796.6,1796.5,3.4820131]
[1745880102561,9.79363,1796.6,1796.5,3.4819256]
[1745880103461,1.11312,1796.3,1796.2,3.2078]
[1745880103662,1.11312,1796.3,1796.2,1.85108242]
[1745880104767,2.806,1796.4,1796.3,1.11312]
[1745880107173,1.6929,1796.4,1796.1,3.0418]
[1745880107466,1.11336,1795.9,1795.8,4.85141]
[1745880107673,1.11343,1795.8,1795.7,4.32125]
[1745880107871,1.5955,1795.8,1795.7,45.85972853]
[1745880108264,4.07253,1795.8,1795.7,0.73847853]
[1745880108464,1.11349,1795.7,1795.5,12.22774371]
[1745880108767,1.11355,1795.6,1795.5,7.37617371]
[1745880108973,1.11367,1795.4,1795.3,48.17617371]
[1745880109269,1.11367,1795.4,1795.3,48.91469756]
[1745880109471,1.11367,1795.4,1795.3,49.28991371]
[1745880109672,2.47727,1795.4,1795.3,49.28991371]
[1745880110170,1.3636,1795.4,1795.3,49.28991371]
[1745880110772,3.0302,1795.4,1795.3,49.28991371]
[1745880111673,3.0302,1795.4,1795.3,50.88051371]
[1745880112178,3.0302,1795.4,1795.3,54.68251371]
[1745880112364,3.0302,1795.4,1795.3,47.30634]
[1745880115173,3.0302,1795.4,1795.3,48.64684]
[1745880116082,1.11356,1795.6,1795.5,1.11358]
[1745880116281,4.10066,1795.6,1795.5,1.11358]
[1745880116483,2.9871,1795.6,1795.5,1.11358]
[1745880116784,4.84953,1795.7,1795.5,1.11358]
[1745880116985,1.11355,1795.6,1795.5,2.40368]
[1745880117183,1.7386,1795.6,1795.5,2.40368]
[1745880117984,5.0771,1795.7,1795.6,1.11355]
[1745880118183,3.0797,1795.7,1795.6,2.73635]
[1745880118889,4.19319,1795.7,1795.6,2.73635]
[1745880119275,4.19319,1795.7,1795.6,1.11355]
[1745880121083,1.11359,1795.6,1795.5,1.11359]
[1745880121277,2.75019,1795.6,1795.5,1.11359]
[1745880121477,1.11363,1795.5,1795.4,1.11363]
[1745880121681,1.11367,1795.4,1795.3,41.91369]
[1745880121982,1.11367,1795.4,1795.3,1.11369]
[1745880122192,2.75027,1795.4,1795.3,1.11369]
[1745880122582,1.6366,1795.4,1795.3,41.91369]
[1745880122777,7.48104,1795.7,1795.3,46.58468]
[1745880122981,1.11356,1795.6,1795.5,1.11357]
[1745880123783,1.11366,1795.5,1795.4,1.11366]
[1745880123989,1.11367,1795.4,1795.3,43.21008]
[1745880124190,2.80966,1795.5,1795.4,1.11367]
[1745880125288,1.696,1795.5,1795.4,1.11367]
[1745880125593,1.696,1795.5,1795.4,2.77157]
[1745880126583,10.1529,1795.7,1795.6,1.11355]
[1745880127088,11.26639,1795.7,1795.6,1.11355]
[1745880127290,11.26639,1795.7,1795.5,1.6579]
[1745880127291,1.11355,1795.6,1795.5,2.77147]
[1745880127491,2.75195,1795.6,1795.5,2.77147]
[1745880128395,1.6384,1795.6,1795.5,2.77147]
[1745880129294,2.75195,1795.6,1795.5,2.77147]
[1745880129895,2.75195,1795.6,1795.5,1.11357]
[1745880133386,1.11361,1795.5,1795.4,1.11367]
[1745880133592,1.6479,1795.5,1795.4,1.8507676]
[1745880133984,1.6479,1795.5,1795.4,3.4522676]
[1745880135700,2.76151,1795.5,1795.4,1.8507676]
[1745880136299,2.76151,1795.5,1795.4,1.11367]
[1745880136498,2.76151,1795.5,1795.4,0.73862012]
[1745880136793,1.11374,1795.3,1795.2,3.2078]
[1745880137094,1.11392,1795.0,1794.9,2.36353]
[1745880137308,1.11392,1795.0,1794.9,41.53910597]
[1745880137502,1.11391,1795.1,1794.9,42.65302597]
[1745880137701,1.7496,1795.0,1794.9,41.91392]
[1745880137906,2.86352,1795.0,1794.9,42.65349095]
[1745880138107,1.7496,1795.0,1794.9,42.65349263]
[1745880138306,2.86352,1795.0,1794.9,42.65349263]
[1745880138611,1.7496,1795.0,1794.9,41.91392]
[1745880140405,1.7496,1795.0,1794.9,1.11392]
[1745880140613,2.86352,1795.0,1794.9,1.11392]
[1745880141112,1.7496,1795.0,1794.9,1.11392]
[1745880143315,2.86352,1795.0,1794.9,1.11392]
[1745880144002,1.7496,1795.0,1794.9,1.11392]
[1745880145514,2.86352,1795.0,1794.9,1.11392]
[1745880146110,2.86352,1795.0,1794.4,3.735]
[1745880146111,1.1142,1794.6,1794.5,1.11421]
[1745880146912,1.11423,1794.5,1794.4,44.0078]
[1745880147209,1.11423,1794.5,1794.1,2.78606]
[1745880147210,1.6806,1794.5,1794.1,3.735]
[1745880147411,1.11436,1794.3,1794.1,3.735]
[1745880147615,1.11436,1794.3,1794.1,5.3949]
[1745880147815,1.6806,1794.2,1794.1,4.84943]
[1745880148209,1.6806,1794.2,1794.1,45.64943]
[1745880148715,1.6806,1794.2,1794.1,47.30933]
[1745880149908,1.6806,1794.2,1794.1,43.57433]
[1745880154121,2.79502,1794.2,1794.0,2.43451]
[1745880154315,1.11448,1794.1,1794.0,2.43451]
[1745880154615,2.78838,1794.1,1794.0,43.23451]
[1745880154918,1.6739,1794.1,1794.0,43.23451]
[1745880155621,2.78838,1794.1,1794.0,43.23451]
[1745880156119,2.78838,1794.1,1794.0,47.03651]